[Event "*** Titled Tuesday Blitz"]
[Site "Chess.com"]
[Date "2020.10.27"]
[Round "5"]
[White "Anton_Demchenko"]
[Black "ChessWarrior7197"]
[Result "1/2-1/2"]
[WhiteElo "2855"]
[BlackElo "2977"]
[TimeControl "180+1"]
[EndTime "10:58:54 PDT"]
[Termination "Game drawn by 50-move rule"]

1. d4 {[%clk 0:03:00.9]} 1... d5 {[%clk 0:02:58.7]} 2. Nf3 {[%clk 0:03:01.1]}
2... Nf6 {[%clk 0:02:58.2]} 3. Bf4 {[%clk 0:03:01.7]} 3... c5 {[%clk 0:02:58.2]}
4. e3 {[%clk 0:03:02.3]} 4... Nc6 {[%clk 0:02:58.2]} 5. Nbd2 {[%clk 0:03:01.8]}
5... Qb6 {[%clk 0:02:58.2]} 6. dxc5 {[%clk 0:03:01.7]} 6... Qxb2 {[%clk
0:02:57.6]} 7. Rb1 {[%clk 0:03:02]} 7... Qc3 {[%clk 0:02:57.7]} 8. Bb5 {[%clk
0:03:01.7]} 8... g6 {[%clk 0:02:57.3]} 9. O-O {[%clk 0:02:57]} 9... Bg7 {[%clk
0:02:56.9]} 10. Nb3 {[%clk 0:02:57.5]} 10... O-O {[%clk 0:02:56.5]} 11. Bxc6
{[%clk 0:02:57.2]} 11... bxc6 {[%clk 0:02:57.4]} 12. Be5 {[%clk 0:02:57.9]}
12... Qc4 {[%clk 0:02:56.6]} 13. Qd4 {[%clk 0:02:58.5]} 13... Qxd4 {[%clk
0:02:20.4]} 14. exd4 {[%clk 0:02:49.5]} 14... a5 {[%clk 0:02:18.9]} 15. a4
{[%clk 0:02:17]} 15... Bf5 {[%clk 0:02:13.8]} 16. Rb2 {[%clk 0:02:16.2]} 16...
Ne4 {[%clk 0:02:08.2]} 17. Bxg7 {[%clk 0:02:12.8]} 17... Kxg7 {[%clk 0:02:09.1]}
18. Ne5 {[%clk 0:02:03.9]} 18... Rfc8 {[%clk 0:02:08.6]} 19. g4 {[%clk
0:01:14.7]} 19... f6 {[%clk 0:01:19.5]} 20. Nxc6 {[%clk 0:01:04.7]} 20... Rxc6
{[%clk 0:01:20.4]} 21. gxf5 {[%clk 0:01:04.6]} 21... gxf5 {[%clk 0:01:18.3]} 22.
f3 {[%clk 0:00:49.1]} 22... Nc3 {[%clk 0:01:18]} 23. Re1 {[%clk 0:00:49.6]}
23... Kf7 {[%clk 0:01:17.5]} 24. Nc1 {[%clk 0:00:45.5]} 24... Nxa4 {[%clk
0:01:12.2]} 25. Rb7 {[%clk 0:00:44.8]} 25... Re6 {[%clk 0:01:12.5]} 26. Rxe6
{[%clk 0:00:40.8]} 26... Kxe6 {[%clk 0:01:13.4]} 27. Nd3 {[%clk 0:00:41.6]}
27... Nc3 {[%clk 0:01:12.1]} 28. Nf4+ {[%clk 0:00:30]} 28... Kf7 {[%clk
0:01:12]} 29. Rb3 {[%clk 0:00:30.9]} 29... a4 {[%clk 0:01:09.6]} 30. Rxc3 {[%clk
0:00:10.4]} 30... a3 {[%clk 0:01:09.7]} 31. Rxa3 {[%clk 0:00:09.8]} 31... Rxa3
{[%clk 0:01:10.6]} 32. Nxd5 {[%clk 0:00:10.7]} 32... e6 {[%clk 0:01:03.9]} 33.
Nb6 {[%clk 0:00:05.2]} 33... Rxf3 {[%clk 0:00:59.2]} 34. c4 {[%clk 0:00:04.7]}
34... Ke7 {[%clk 0:00:44.9]} 35. d5 {[%clk 0:00:04.5]} 35... exd5 {[%clk
0:00:39.9]} 36. cxd5 {[%clk 0:00:05.4]} 36... Rc3 {[%clk 0:00:38.7]} 37. d6+
{[%clk 0:00:05.7]} 37... Kd8 {[%clk 0:00:38.2]} 38. Nd5 {[%clk 0:00:04.4]} 38...
Rxc5 {[%clk 0:00:38.1]} 39. Nxf6 {[%clk 0:00:05.3]} 39... h6 {[%clk 0:00:34.8]}
40. Ng8 {[%clk 0:00:05.4]} 40... h5 {[%clk 0:00:33]} 41. Nf6 {[%clk 0:00:05.4]}
41... h4 {[%clk 0:00:33.4]} 42. Kg2 {[%clk 0:00:06]} 42... Rc3 {[%clk
0:00:32.9]} 43. Nd5 {[%clk 0:00:05.2]} 43... Rd3 {[%clk 0:00:28.8]} 44. Ne7
{[%clk 0:00:04.1]} 44... f4 {[%clk 0:00:23.3]} 45. Ng6 {[%clk 0:00:04.1]} 45...
h3+ {[%clk 0:00:22.8]} 46. Kf2 {[%clk 0:00:04.1]} 46... Rd2+ {[%clk 0:00:20]}
47. Kf3 {[%clk 0:00:04.6]} 47... Rxh2 {[%clk 0:00:20.4]} 48. Nxf4 {[%clk
0:00:05]} 48... Rh1 {[%clk 0:00:21]} 49. Kg3 {[%clk 0:00:05.7]} 49... h2 {[%clk
0:00:21.5]} 50. Nh3 {[%clk 0:00:03.8]} 50... Kd7 {[%clk 0:00:18.2]} 51. Kg2
{[%clk 0:00:04.3]} 51... Ra1 {[%clk 0:00:16.5]} 52. Kxh2 {[%clk 0:00:05.2]}
52... Kxd6 {[%clk 0:00:17.4]} 53. Kg3 {[%clk 0:00:06.1]} 53... Ke5 {[%clk
0:00:18.2]} 54. Ng5 {[%clk 0:00:05.4]} 54... Kf5 {[%clk 0:00:16.7]} 55. Nf3
{[%clk 0:00:05.2]} 55... Ra3 {[%clk 0:00:17.6]} 56. Kf2 {[%clk 0:00:05]} 56...
Kf4 {[%clk 0:00:17.3]} 57. Ne1 {[%clk 0:00:04.3]} 57... Ra2+ {[%clk 0:00:17.4]}
58. Kf1 {[%clk 0:00:04.9]} 58... Ke3 {[%clk 0:00:17.6]} 59. Ng2+ {[%clk
0:00:05]} 59... Kf3 {[%clk 0:00:18.5]} 60. Ne1+ {[%clk 0:00:05.4]} 60... Kg3
{[%clk 0:00:19.4]} 61. Nd3 {[%clk 0:00:05.6]} 61... Rd2 {[%clk 0:00:19.4]} 62.
Ne1 {[%clk 0:00:05.7]} 62... Rb2 {[%clk 0:00:17.8]} 63. Nd3 {[%clk 0:00:05.8]}
63... Ra2 {[%clk 0:00:18.2]} 64. Ke1 {[%clk 0:00:05.6]} 64... Kf3 {[%clk
0:00:17.3]} 65. Kd1 {[%clk 0:00:05.4]} 65... Ke3 {[%clk 0:00:17.7]} 66. Nc1
{[%clk 0:00:04.1]} 66... Rb2 {[%clk 0:00:18]} 67. Ke1 {[%clk 0:00:03.5]} 67...
Rd2 {[%clk 0:00:17.6]} 68. Nb3 {[%clk 0:00:03.3]} 68... Rd3 {[%clk 0:00:16.6]}
69. Nc1 {[%clk 0:00:03.4]} 69... Rd8 {[%clk 0:00:16.9]} 70. Nb3 {[%clk
0:00:03.2]} 70... Kd3 {[%clk 0:00:15.9]} 71. Nc1+ {[%clk 0:00:03]} 71... Ke3
{[%clk 0:00:16.3]} 72. Nb3 {[%clk 0:00:03.4]} 72... Rh8 {[%clk 0:00:14.4]} 73.
Kd1 {[%clk 0:00:03.4]} 73... Kd3 {[%clk 0:00:15.3]} 74. Nc1+ {[%clk 0:00:03.7]}
74... Kc3 {[%clk 0:00:15.4]} 75. Ne2+ {[%clk 0:00:04.1]} 75... Kd3 {[%clk
0:00:16]} 76. Nc1+ {[%clk 0:00:04.5]} 76... Ke3 {[%clk 0:00:16.9]} 77. Kc2
{[%clk 0:00:04.7]} 77... Rc8+ {[%clk 0:00:16.9]} 78. Kb2 {[%clk 0:00:05.2]}
78... Kd2 {[%clk 0:00:12]} 79. Nb3+ {[%clk 0:00:05.5]} 79... Kd3 {[%clk
0:00:10.7]} 80. Nc1+ {[%clk 0:00:05.9]} 80... Kc4 {[%clk 0:00:11.2]} 81. Kc2
{[%clk 0:00:05.5]} 81... Rd8 {[%clk 0:00:10]} 82. Ne2 {[%clk 0:00:05.2]} 82...
Rd3 {[%clk 0:00:09.2]} 83. Nc1 {[%clk 0:00:05.4]} 83... Rh3 {[%clk 0:00:09.4]}
84. Kd2 {[%clk 0:00:05.6]} 84... Rh2+ {[%clk 0:00:06.6]} 85. Ne2 {[%clk
0:00:06]} 85... Rg2 {[%clk 0:00:06.7]} 86. Ke3 {[%clk 0:00:06.4]} 86... Rg8
{[%clk 0:00:06.7]} 87. Kf3 {[%clk 0:00:07.1]} 87... Kd3 {[%clk 0:00:06.4]} 88.
Nf4+ {[%clk 0:00:07.2]} 88... Kd4 {[%clk 0:00:07.3]} 89. Ne6+ {[%clk 0:00:07.6]}
89... Ke5 {[%clk 0:00:07.1]} 90. Nc5 {[%clk 0:00:07.8]} 90... Rd8 {[%clk
0:00:02.7]} 91. Ke3 {[%clk 0:00:07.8]} 91... Ra8 {[%clk 0:00:03]} 92. Nd3+
{[%clk 0:00:08.3]} 92... Kf5 {[%clk 0:00:03.9]} 93. Kd4 {[%clk 0:00:08.7]} 93...
Ra3 {[%clk 0:00:04.8]} 94. Kc4 {[%clk 0:00:08.7]} 94... Ke4 {[%clk 0:00:04.5]}
95. Nc5+ {[%clk 0:00:09.2]} 95... Ke3 {[%clk 0:00:04.7]} 96. Kd5 {[%clk
0:00:09.7]} 96... Rc3 {[%clk 0:00:03.4]} 97. Ne6 {[%clk 0:00:09.1]} 97... Rc1
{[%clk 0:00:03.7]} 98. Ke5 {[%clk 0:00:09]} 98... Rh1 {[%clk 0:00:04.6]} 99. Kd5
{[%clk 0:00:09.4]} 99... Rh4 {[%clk 0:00:04.7]} 100. Kd6 {[%clk 0:00:09.9]}
100... Ke4 {[%clk 0:00:04.2]} 101. Nc5+ {[%clk 0:00:10.2]} 101... Kd4 {[%clk
0:00:04.7]} 102. Ne6+ {[%clk 0:00:10.5]} 102... Kc4 {[%clk 0:00:05.6]} 1/2-1/2

[Event "*** Titled Tuesday Blitz"]
[Site "Chess.com"]
[Date "2020.10.27"]
[Round "6"]
[White "Jumbo"]
[Black "SergeyKarjakin"]
[Result "1/2-1/2"]
[WhiteElo "2868"]
[BlackElo "3012"]
[TimeControl "180+1"]
[EndTime "11:00:53 PDT"]
[Termination "Game drawn by repetition"]

1. d4 {[%clk 0:03:00.9]} 1... Nf6 {[%clk 0:03:00.6]} 2. c4 {[%clk 0:03:01.1]}
2... e6 {[%clk 0:03:01.3]} 3. Nf3 {[%clk 0:03:01.7]} 3... d5 {[%clk 0:03:01.8]}
4. g3 {[%clk 0:02:59.3]} 4... Bb4+ {[%clk 0:03:02.2]} 5. Bd2 {[%clk 0:02:59.7]}
5... Be7 {[%clk 0:03:03]} 6. Bg2 {[%clk 0:03:00.2]} 6... O-O {[%clk 0:03:03.8]}
7. O-O {[%clk 0:03:00.4]} 7... Nbd7 {[%clk 0:03:04.6]} 8. Qc2 {[%clk 0:03:00.4]}
8... c6 {[%clk 0:03:04.5]} 9. Rd1 {[%clk 0:02:58.6]} 9... b6 {[%clk 0:03:04.5]}
10. Bf4 {[%clk 0:02:52.3]} 10... Ba6 {[%clk 0:03:04]} 11. b3 {[%clk 0:02:52.3]}
11... Rc8 {[%clk 0:03:02.5]} 12. Nc3 {[%clk 0:02:51.6]} 12... Nh5 {[%clk
0:03:01.8]} 13. Bc1 {[%clk 0:02:50.8]} 13... Nhf6 {[%clk 0:03:01.7]} 14. Bf4
{[%clk 0:02:44.9]} 14... Nh5 {[%clk 0:02:59.4]} 15. Bc1 {[%clk 0:02:44.5]} 15...
Nhf6 {[%clk 0:02:59.3]} 16. Bf4 {[%clk 0:02:42]} 1/2-1/2

[Event "*** Titled Tuesday Blitz"]
[Site "Chess.com"]
[Date "2020.10.27"]
[Round "6"]
[White "blitzking1729"]
[Black "Artem_0degov"]
[Result "1-0"]
[WhiteElo "2568"]
[BlackElo "2401"]
[TimeControl "180+1"]
[EndTime "11:01:57 PDT"]
[Termination "blitzking1729 won by resignation"]

1. d4 {[%clk 0:03:00.9]} 1... Nf6 {[%clk 0:02:55.7]} 2. Bg5 {[%clk 0:03:00.7]}
2... g6 {[%clk 0:02:54.3]} 3. Bxf6 {[%clk 0:02:58.9]} 3... exf6 {[%clk
0:02:55.2]} 4. e3 {[%clk 0:02:59.8]} 4... Bg7 {[%clk 0:02:54.6]} 5. g3 {[%clk
0:02:59.8]} 5... O-O {[%clk 0:02:54.6]} 6. Bg2 {[%clk 0:02:59.8]} 6... c5 {[%clk
0:02:55.1]} 7. dxc5 {[%clk 0:02:56.8]} 7... Qa5+ {[%clk 0:02:50.9]} 8. Nc3
{[%clk 0:02:56.7]} 8... Qxc5 {[%clk 0:02:50.9]} 9. Nge2 {[%clk 0:02:56.2]} 9...
Nc6 {[%clk 0:02:50.2]} 10. O-O {[%clk 0:02:55.2]} 10... f5 {[%clk 0:02:49.6]}
11. Qd2 {[%clk 0:02:46.1]} 11... b6 {[%clk 0:02:48.4]} 12. Rfd1 {[%clk
0:02:44.4]} 12... Ne5 {[%clk 0:02:38.1]} 13. Bxa8 {[%clk 0:02:41.2]} 13... Nc4
{[%clk 0:02:28.6]} 14. Qd5 {[%clk 0:02:39.6]} 14... Qc7 {[%clk 0:02:26.1]} 15.
Nb5 {[%clk 0:02:22.5]} 1-0

[Event "*** Titled Tuesday Blitz"]
[Site "Chess.com"]
[Date "2020.10.27"]
[Round "6"]
[White "Training_Day"]
[Black "Euge_chess"]
[Result "1-0"]
[WhiteElo "2401"]
[BlackElo "2089"]
[TimeControl "180+1"]
[EndTime "11:02:29 PDT"]
[Termination "Training_Day won by resignation"]

1. e4 {[%clk 0:03:00.9]} 1... e5 {[%clk 0:02:59.6]} 2. f4 {[%clk 0:02:59.4]}
2... exf4 {[%clk 0:02:58.7]} 3. Nf3 {[%clk 0:02:59.5]} 3... d5 {[%clk
0:02:58.8]} 4. exd5 {[%clk 0:02:59.3]} 4... Nf6 {[%clk 0:02:59]} 5. Nc3 {[%clk
0:02:58.3]} 5... Nxd5 {[%clk 0:02:58.5]} 6. Nxd5 {[%clk 0:02:59.2]} 6... Qxd5
{[%clk 0:02:58.2]} 7. d4 {[%clk 0:02:59]} 7... Nc6 {[%clk 0:02:44.7]} 8. Bxf4
{[%clk 0:02:52.9]} 8... Bg4 {[%clk 0:02:22.8]} 9. c3 {[%clk 0:02:43]} 9... O-O-O
{[%clk 0:02:17.8]} 10. Be2 {[%clk 0:02:36.8]} 10... Qe4 {[%clk 0:02:06.3]} 11.
Qd2 {[%clk 0:02:24]} 11... Bxf3 {[%clk 0:01:58.2]} 12. gxf3 {[%clk 0:02:22.9]}
12... Re8 {[%clk 0:01:57.7]} 13. fxe4 {[%clk 0:02:21.8]} 1-0

[Event "*** Titled Tuesday Blitz"]
[Site "Chess.com"]
[Date "2020.10.27"]
[Round "6"]
[White "anon481216"]
[Black "lacafi"]
[Result "1-0"]
[WhiteElo "2408"]
[BlackElo "2114"]
[TimeControl "180+1"]
[EndTime "11:02:30 PDT"]
[Termination "anon481216 won by resignation"]

1. d4 {[%clk 0:03:00.9]} 1... f5 {[%clk 0:02:51.7]} 2. e4 {[%clk 0:02:59.5]}
2... fxe4 {[%clk 0:02:51.7]} 3. Nc3 {[%clk 0:02:58.5]} 3... Nf6 {[%clk
0:02:52.3]} 4. Bg5 {[%clk 0:02:57.5]} 4... d5 {[%clk 0:02:52.7]} 5. Bxf6 {[%clk
0:02:51.5]} 5... exf6 {[%clk 0:02:52.7]} 6. Qh5+ {[%clk 0:02:49.9]} 6... g6
{[%clk 0:02:30.2]} 7. Qxd5 {[%clk 0:02:49.7]} 7... Qxd5 {[%clk 0:02:21.7]} 8.
Nxd5 {[%clk 0:02:49.1]} 8... Kd8 {[%clk 0:02:16.3]} 9. Nxf6 {[%clk 0:02:47.9]}
9... Bf5 {[%clk 0:02:15.1]} 10. g4 {[%clk 0:02:41.1]} 10... Bg7 {[%clk
0:02:14.8]} 11. gxf5 {[%clk 0:02:40.6]} 11... Bxf6 {[%clk 0:02:15]} 12. fxg6
{[%clk 0:02:40.7]} 12... hxg6 {[%clk 0:02:15.6]} 13. Bg2 {[%clk 0:02:39.2]}
13... Re8 {[%clk 0:02:02.3]} 14. O-O-O {[%clk 0:02:38.1]} 14... Nc6 {[%clk
0:02:02.7]} 15. Ne2 {[%clk 0:02:37.4]} 15... Re7 {[%clk 0:01:51.6]} 16. h4
{[%clk 0:02:33.5]} 16... Ke8 {[%clk 0:01:50.6]} 17. h5 {[%clk 0:02:33.1]} 17...
gxh5 {[%clk 0:01:49.7]} 18. Rxh5 {[%clk 0:02:32.7]} 18... Rd8 {[%clk 0:01:49.2]}
19. c3 {[%clk 0:02:32.5]} 19... Na5 {[%clk 0:01:40.6]} 20. Rxa5 {[%clk
0:02:27.7]} 1-0

[Event "*** Titled Tuesday Blitz"]
[Site "Chess.com"]
[Date "2020.10.27"]
[Round "6"]
[White "JozefKneht"]
[Black "TengisChess"]
[Result "0-1"]
[WhiteElo "2407"]
[BlackElo "2606"]
[TimeControl "180+1"]
[EndTime "11:02:38 PDT"]
[Termination "TengisChess won by resignation"]

1. Nf3 {[%clk 0:03:00.9]} 1... Nf6 {[%clk 0:02:58.8]} 2. d4 {[%clk 0:02:58.7]}
2... d5 {[%clk 0:02:57.1]} 3. Bf4 {[%clk 0:02:58.1]} 3... e6 {[%clk 0:02:49.9]}
4. e3 {[%clk 0:02:57.8]} 4... Bd6 {[%clk 0:02:47.2]} 5. Ne5 {[%clk 0:02:55.2]}
5... O-O {[%clk 0:02:36.7]} 6. Nd2 {[%clk 0:02:54.3]} 6... c5 {[%clk 0:02:32]}
7. c3 {[%clk 0:02:53.5]} 7... Qc7 {[%clk 0:02:29.2]} 8. Bd3 {[%clk 0:02:52.7]}
8... Nbd7 {[%clk 0:02:18.3]} 9. Nxd7 {[%clk 0:02:51.2]} 9... Bxd7 {[%clk
0:02:13.1]} 10. Bxd6 {[%clk 0:02:46.9]} 10... Qxd6 {[%clk 0:02:14]} 11. Nf3
{[%clk 0:02:46.2]} 11... c4 {[%clk 0:02:11.1]} 12. Bc2 {[%clk 0:02:45.4]} 12...
b5 {[%clk 0:02:09]} 13. a3 {[%clk 0:02:45.4]} 13... a5 {[%clk 0:02:05.3]} 14.
Qd2 {[%clk 0:02:38.4]} 14... b4 {[%clk 0:02:00.5]} 15. axb4 {[%clk 0:02:36.7]}
15... axb4 {[%clk 0:01:57.9]} 16. Rxa8 {[%clk 0:02:36.2]} 16... Rxa8 {[%clk
0:01:58.2]} 17. cxb4 {[%clk 0:02:36.1]} 17... Ra1+ {[%clk 0:01:52.9]} 18. Bd1
{[%clk 0:02:35.4]} 18... Ne4 {[%clk 0:01:52.2]} 19. Qe2 {[%clk 0:02:34.2]} 19...
Qxb4+ {[%clk 0:01:47]} 20. Nd2 {[%clk 0:02:32.1]} 20... c3 {[%clk 0:01:44.1]}
0-1

[Event "*** Titled Tuesday Blitz"]
[Site "Chess.com"]
[Date "2020.10.27"]
[Round "6"]
[White "Rodalquilar"]
[Black "tlomigtlis"]
[Result "1-0"]
[WhiteElo "2754"]
[BlackElo "2590"]
[TimeControl "180+1"]
[EndTime "11:02:53 PDT"]
[Termination "Rodalquilar won by resignation"]

1. d4 {[%clk 0:03:00.9]} 1... d5 {[%clk 0:02:59.8]} 2. Bf4 {[%clk 0:03:00.9]}
2... c5 {[%clk 0:02:59.1]} 3. e3 {[%clk 0:03:01.4]} 3... Nc6 {[%clk 0:02:59.2]}
4. Nf3 {[%clk 0:03:02]} 4... Nf6 {[%clk 0:02:59.4]} 5. Nbd2 {[%clk 0:03:01.5]}
5... Bf5 {[%clk 0:02:58.9]} 6. dxc5 {[%clk 0:03:01.4]} 6... e6 {[%clk
0:02:58.1]} 7. Nd4 {[%clk 0:03:00.4]} 7... Bg6 {[%clk 0:02:50.4]} 8. Bb5 {[%clk
0:02:58.6]} 8... Rc8 {[%clk 0:02:47.3]} 9. b4 {[%clk 0:02:56.6]} 9... Nd7 {[%clk
0:02:46]} 10. Nxc6 {[%clk 0:02:55.7]} 10... bxc6 {[%clk 0:02:46.9]} 11. Ba6
{[%clk 0:02:56.1]} 11... Rb8 {[%clk 0:02:41.6]} 12. Bxb8 {[%clk 0:02:55.6]}
12... Qxb8 {[%clk 0:02:42.5]} 13. a3 {[%clk 0:02:53.1]} 13... Be7 {[%clk
0:02:42.2]} 14. Bd3 {[%clk 0:02:51.1]} 14... Ne5 {[%clk 0:02:37.9]} 15. Bxg6
{[%clk 0:02:47.6]} 15... hxg6 {[%clk 0:02:38.8]} 16. h3 {[%clk 0:02:46.5]} 16...
Bh4 {[%clk 0:02:36.1]} 17. Nf3 {[%clk 0:02:43]} 17... Bf6 {[%clk 0:02:29.8]} 18.
Nxe5 {[%clk 0:02:37.9]} 18... Qxe5 {[%clk 0:02:28]} 19. Rb1 {[%clk 0:02:36.6]}
19... Qc3+ {[%clk 0:02:27.4]} 20. Qd2 {[%clk 0:02:36.8]} 20... Qxa3 {[%clk
0:02:27]} 21. O-O {[%clk 0:02:36.9]} 21... O-O {[%clk 0:02:20.9]} 22. Qd3 {[%clk
0:02:36.8]} 22... Qa4 {[%clk 0:02:19.8]} 23. c3 {[%clk 0:02:36]} 23... Rb8
{[%clk 0:02:16.1]} 24. Rfc1 {[%clk 0:02:17]} 24... Qa3 {[%clk 0:02:14]} 25. Ra1
{[%clk 0:02:14.7]} 25... Qb2 {[%clk 0:02:10.8]} 26. Qc2 {[%clk 0:02:04.9]} 26...
Qxc2 {[%clk 0:02:06.7]} 27. Rxc2 {[%clk 0:02:05.8]} 27... Rxb4 {[%clk
0:02:06.8]} 28. cxb4 {[%clk 0:02:06]} 28... Bxa1 {[%clk 0:02:07.7]} 29. b5
{[%clk 0:02:05.9]} 1-0

[Event "*** Titled Tuesday Blitz"]
[Site "Chess.com"]
[Date "2020.10.27"]
[Round "6"]
[White "jacky72"]
[Black "GalperinPlaton"]
[Result "0-1"]
[WhiteElo "2520"]
[BlackElo "2831"]
[TimeControl "180+1"]
[EndTime "11:03:18 PDT"]
[Termination "GalperinPlaton won by resignation"]

1. d4 {[%clk 0:03:00.9]} 1... b6 {[%clk 0:03:00.5]} 2. Nf3 {[%clk 0:02:53.1]}
2... Bb7 {[%clk 0:03:01]} 3. g3 {[%clk 0:02:54]} 3... h5 {[%clk 0:02:59.2]} 4.
Bg2 {[%clk 0:02:50.8]} 4... Nf6 {[%clk 0:02:59.2]} 5. h3 {[%clk 0:02:49.8]} 5...
e6 {[%clk 0:02:58.8]} 6. c4 {[%clk 0:02:49.8]} 6... Bb4+ {[%clk 0:02:57.8]} 7.
Nc3 {[%clk 0:02:50.2]} 7... Bxc3+ {[%clk 0:02:56.7]} 8. bxc3 {[%clk 0:02:50.1]}
8... Qc8 {[%clk 0:02:56.9]} 9. O-O {[%clk 0:02:48.6]} 9... d6 {[%clk 0:02:56.5]}
10. Bg5 {[%clk 0:02:43.3]} 10... Nbd7 {[%clk 0:02:56.5]} 11. d5 {[%clk
0:02:38.3]} 11... exd5 {[%clk 0:02:54.2]} 12. cxd5 {[%clk 0:02:34.6]} 12... Bxd5
{[%clk 0:02:55.1]} 13. Re1 {[%clk 0:02:27]} 13... Be4 {[%clk 0:02:54.1]} 14. Qd4
{[%clk 0:02:23.7]} 14... Qb7 {[%clk 0:02:50.4]} 15. a4 {[%clk 0:02:14.3]} 15...
a5 {[%clk 0:02:47.4]} 16. Nh4 {[%clk 0:02:03.2]} 16... Bxg2 {[%clk 0:02:46.2]}
17. Nxg2 {[%clk 0:02:04.1]} 17... O-O-O {[%clk 0:02:45.7]} 18. Nf4 {[%clk
0:02:04.4]} 18... Rde8 {[%clk 0:02:45.1]} 19. Qc4 {[%clk 0:02:01.1]} 19... Ne5
{[%clk 0:02:41.8]} 20. Qb5 {[%clk 0:02:01.4]} 20... Ne4 {[%clk 0:02:40.1]} 21.
h4 {[%clk 0:01:56.2]} 21... Nxg5 {[%clk 0:02:39.2]} 22. hxg5 {[%clk 0:01:56.1]}
22... h4 {[%clk 0:02:39.8]} 23. Nd5 {[%clk 0:01:47.7]} 23... hxg3 {[%clk
0:02:34.1]} 24. fxg3 {[%clk 0:01:48.6]} 24... c6 {[%clk 0:02:30.7]} 25. Nxb6+
{[%clk 0:01:47.1]} 25... Kc7 {[%clk 0:02:30.6]} 26. Nd5+ {[%clk 0:01:40]} 26...
cxd5 {[%clk 0:02:31.5]} 27. Qxa5+ {[%clk 0:01:39.2]} 27... Qb6+ {[%clk
0:02:31.9]} 28. Qxb6+ {[%clk 0:01:39]} 28... Kxb6 {[%clk 0:02:32.8]} 29. Reb1+
{[%clk 0:01:38.8]} 29... Ka6 {[%clk 0:02:31.8]} 30. Rb5 {[%clk 0:01:38.3]} 30...
Nc4 {[%clk 0:02:29.8]} 31. Rxd5 {[%clk 0:01:33.7]} 31... Rxe2 {[%clk 0:02:30.1]}
32. Rd4 {[%clk 0:01:34.2]} 32... Ne3 {[%clk 0:02:29.1]} 33. Rxd6+ {[%clk
0:01:33.7]} 33... Ka5 {[%clk 0:02:29.2]} 34. Rd2 {[%clk 0:01:30.1]} 34... Rxd2
{[%clk 0:02:28.9]} 0-1

[Event "*** Titled Tuesday Blitz"]
[Site "Chess.com"]
[Date "2020.10.27"]
[Round "6"]
[White "MarceloPlaya"]
[Black "Skatchkov_V"]
[Result "0-1"]
[WhiteElo "2279"]
[BlackElo "2472"]
[TimeControl "180+1"]
[EndTime "11:03:26 PDT"]
[Termination "Skatchkov_V won by resignation"]

1. e4 {[%clk 0:03:00.2]} 1... e5 {[%clk 0:02:59.8]} 2. Nf3 {[%clk 0:02:57.8]}
2... d5 {[%clk 0:02:59.6]} 3. exd5 {[%clk 0:02:56.8]} 3... e4 {[%clk 0:02:59.2]}
4. Nd4 {[%clk 0:02:55.8]} 4... Qxd5 {[%clk 0:02:58.5]} 5. Nb3 {[%clk 0:02:55.5]}
5... Qe5 {[%clk 0:02:57.1]} 6. Nc3 {[%clk 0:02:51.1]} 6... Nf6 {[%clk
0:02:56.4]} 7. Be2 {[%clk 0:02:48.5]} 7... Bd6 {[%clk 0:02:56.2]} 8. d4 {[%clk
0:02:44.1]} 8... exd3 {[%clk 0:02:56]} 9. Qxd3 {[%clk 0:02:43.3]} 9... O-O
{[%clk 0:02:55.9]} 10. Be3 {[%clk 0:02:40.1]} 10... Bf5 {[%clk 0:02:55.5]} 11.
Qd2 {[%clk 0:02:38.1]} 11... Nc6 {[%clk 0:02:55.5]} 12. O-O-O {[%clk 0:02:36.6]}
12... Rad8 {[%clk 0:02:55.3]} 13. Qe1 {[%clk 0:02:21.3]} 13... Nb4 {[%clk
0:02:50.5]} 14. Nd4 {[%clk 0:02:15.9]} 14... Bg6 {[%clk 0:02:49.3]} 15. a3
{[%clk 0:02:11.5]} 15... Nc6 {[%clk 0:02:36.4]} 16. Nf3 {[%clk 0:02:04.9]} 16...
Qe7 {[%clk 0:02:30.1]} 17. h4 {[%clk 0:02:00.1]} 17... Bxa3 {[%clk 0:02:18.1]}
18. bxa3 {[%clk 0:01:49.1]} 18... Qxa3+ {[%clk 0:02:17.2]} 19. Kb1 {[%clk
0:01:48.5]} 19... Nb4 {[%clk 0:02:16.3]} 20. Rc1 {[%clk 0:01:22.8]} 20... Ne4
{[%clk 0:02:10.9]} 0-1

[Event "*** Titled Tuesday Blitz"]
[Site "Chess.com"]
[Date "2020.10.27"]
[Round "6"]
[White "Kotofeyca"]
[Black "Borsuk_Konstantin"]
[Result "0-1"]
[WhiteElo "2350"]
[BlackElo "2562"]
[TimeControl "180+1"]
[EndTime "11:03:33 PDT"]
[Termination "Borsuk_Konstantin won by resignation"]

1. d4 {[%clk 0:03:00.9]} 1... Nf6 {[%clk 0:02:59.6]} 2. c4 {[%clk 0:03:00.8]}
2... e6 {[%clk 0:03:00]} 3. Nf3 {[%clk 0:03:00.6]} 3... Bb4+ {[%clk 0:03:00.5]}
4. Nbd2 {[%clk 0:03:00]} 4... b6 {[%clk 0:03:00.2]} 5. a3 {[%clk 0:02:59.9]}
5... Bxd2+ {[%clk 0:02:59.9]} 6. Bxd2 {[%clk 0:03:00.8]} 6... Bb7 {[%clk
0:03:00.1]} 7. Bg5 {[%clk 0:03:00.9]} 7... h6 {[%clk 0:02:59.7]} 8. Bh4 {[%clk
0:03:00.8]} 8... a5 {[%clk 0:02:58.9]} 9. b4 {[%clk 0:02:55.8]} 9... d6 {[%clk
0:02:54.8]} 10. e3 {[%clk 0:02:53.4]} 10... Nc6 {[%clk 0:02:50.3]} 11. b5 {[%clk
0:02:52.1]} 11... Ne7 {[%clk 0:02:49.6]} 12. Bxf6 {[%clk 0:02:49.9]} 12... gxf6
{[%clk 0:02:49.5]} 13. g3 {[%clk 0:02:49.9]} 13... h5 {[%clk 0:02:36.8]} 14. Bg2
{[%clk 0:02:47.9]} 14... Ng6 {[%clk 0:02:35.9]} 15. h4 {[%clk 0:02:43.5]} 15...
Ke7 {[%clk 0:02:32.9]} 16. O-O {[%clk 0:02:41.7]} 16... Qg8 {[%clk 0:02:31.4]}
17. Kh2 {[%clk 0:02:32.8]} 17... f5 {[%clk 0:02:29.4]} 18. c5 {[%clk 0:02:26.2]}
18... Rd8 {[%clk 0:02:25.1]} 19. cxb6 {[%clk 0:02:19.1]} 19... cxb6 {[%clk
0:02:24.8]} 20. Rc1 {[%clk 0:02:19.5]} 20... Rd7 {[%clk 0:02:24.9]} 21. Rc3
{[%clk 0:02:13.4]} 21... Qa8 {[%clk 0:02:24.1]} 22. Ne1 {[%clk 0:02:07.3]} 22...
Bd5 {[%clk 0:02:12.4]} 23. Qc2 {[%clk 0:02:00.4]} 23... Rg8 {[%clk 0:02:09.4]}
24. Bxd5 {[%clk 0:01:38.1]} 24... Qxd5 {[%clk 0:02:08.8]} 25. Ng2 {[%clk
0:01:38.6]} 25... Qxb5 {[%clk 0:01:57.4]} 26. Rb1 {[%clk 0:01:38.3]} 26... Qa6
{[%clk 0:01:57.1]} 27. Rc6 {[%clk 0:01:34.4]} 27... Rb8 {[%clk 0:01:57.3]} 28.
Qe2 {[%clk 0:01:33.6]} 28... Qxe2 {[%clk 0:01:56.1]} 0-1